Workbook

Sheet Data
A1: National Housing Bank
A2: Subsidy Calculator for Pradhan Mantri Awas Yojana – Credit Linked Subsidy Scheme (MIG I)
A3: First Disbursement Date | B3: 2017-01-01 | C3: Date should be on or after 01-jan-2017
A4: Current Disbursement Date (for which subsidy claimed) | B4: 2017-01-01 | C4: Date should be on or after first disbursement date
A5: Loan Tenure (in months) | B5: 240 | C5: Numeric Integer only
A6: Current Disbursement Installment (in Rs.) | B6: 900000 | C6: Numeric Integer only
A7: Amount Disbursed before this installment (in Rs.) | B7: 0 | C7: Numeric Integer only
A8: Applied Interest Rate for subsidy calculation (in % p.a) | B8: 4 | C8: NO input data
A9: Subsidy Amount | B9: 235068.0779
A11: Assumptions:
A12: a. Interest for calculation of subsidy is arrived at by applying interest @ 4% p.a. on the disbursed amount and on monthly rest basis
A13: b. Subsidy is calculated for a maximum tenure of 240 months (20 years) from first disbursement.
A14: c. NPV is calculated at the discount rate of 9% and on monthly rest basis.
A15: d. Interest Subsidy is calculated for eligible disbursement amount upto first Rs 9 lakh of loan amount.
A16: e. Paisa is rounded off to the nearest rupee in the total

Sheet Computation
A1: Parameters | C1: Loan Amount | D1: =IF((Data!B7+Data!B6)>900000,900000-Data!B7,Data!B6) -> 900000 | E1: Loan Tenure | F1: =IF(Data!B5>240,240,Data!B5) -> 240 | G1: Cur Inst Tenure | H1: =IF(Data!B4="",0, F1-((YEAR(Data!B4)-YEAR(Data!B3))*12+MONTH(Data!B4)-MONTH(Data!B3))) -> 240 | I1: Int Rate | J1: =IF(Data!B8>4,4,Data!B8) -> 4 | K1: r | L1: =J1/1200 -> 0.003333333333 | M1: (1+r)^n-1 | N1: =((1+L1)^H1)-1 -> 1.222582087
B2: BALANCE | C2: EMI | D2: INTEREST | E2: principal repayment | F2: CL BALANCE | G2: NPV(By Formula) | J2: EMI | K2: =IF($N$1=0,0,($D$1*$L$1)*((1+$L$1)^$H$1)/$N$1) -> 5453.822964
A3: 1 | B3: =D1 -> 900000 | C3: =K2 -> 5453.822964 | D3: =B3*$J$1/(1200) -> 3000 | E3: =C3-D3 -> 2453.822964 | F3: =B3-E3 -> 897546.177 | G3: =D3/POWER(1+9/1200,A3) -> 2977.667494
A4: =A3+1 -> 2 | B4: =IF(F3>0,F3,0) -> 897546.177 | C4: =IF(B4>0,C3,0) -> 5453.822964 | D4: =B4*$J$1/1200 -> 2991.82059 | E4: =C4-D4 -> 2462.002374 | F4: =B4-E4 -> 895084.1747 | G4: =D4/POWER(1+9/1200,A4) -> 2947.443149
A5: =A4+1 -> 3 | B5: =IF(F4>0,F4,0) -> 895084.1747 | C5: =IF(B5>0,C4,0) -> 5453.822964 | D5: =B5*$J$1/1200 -> 2983.613916 | E5: 2470.209048 | F5: 892613.9656 | G5: 2917.477125
A6: 4 | B6: 892613.9656 | C6: 5453.822964 | D6: 2975.379885 | E6: 2478.443078 | F6: 890135.5225 | G6: 2887.767361
A7: 5 | B7: 890135.5225 | C7: 5453.822964 | D7: 2967.118408 | E7: 2486.704555 | F7: 887648.818 | G7: 2858.311811
A8: 6 | B8: 887648.818 | C8: 5453.822964 | D8: 2958.829393 | E8: 2494.99357 | F8: 885153.8244 | G8: 2829.108448
A9: 7 | B9: 885153.8244 | C9: 5453.822964 | D9: 2950.512748 | E9: 2503.310216 | F9: 882650.5142 | G9: 2800.155256
A10: 8 | B10: 882650.5142 | C10: 5453.822964 | D10: 2942.168381 | E10: 2511.654583 | F10: 880138.8596 | G10: 2771.450239
A11: 9 | B11: 880138.8596 | C11: 5453.822964 | D11: 2933.796199 | E11: 2520.026765 | F11: 877618.8328 | G11: 2742.991414
A12: 10 | B12: 877618.8328 | C12: 5453.822964 | D12: 2925.396109 | E12: 2528.426854 | F12: 875090.406 | G12: 2714.776814 | H12: Total NPV as per Manual Formula | I12: =SUM(G3:G242) -> 235068.0779
A13: 11 | B13: 875090.406 | C13: 5453.822964 | D13: 2916.96802 | E13: 2536.854944 | F13: 872553.551 | G13: 2686.804487 | H13: NPV by Excel Formula | I13: =NPV(9/1200,D3:D242) -> 235068.0779
A14: 12 | B14: 872553.551 | C14: 5453.822964 | D14: 2908.511837 | E14: 2545.311127 | F14: 870008.2399 | G14: 2659.072495
A15: 13 | B15: 870008.2399 | C15: 5453.822964 | D15: 2900.027466 | E15: 2553.795497 | F15: 867454.4444 | G15: 2631.578918
A16: 14 | B16: 867454.4444 | C16: 5453.822964 | D16: 2891.514815 | E16: 2562.308149 | F16: 864892.1363 | G16: 2604.321848
A17: 15 | B17: 864892.1363 | C17: 5453.822964 | D17: 2882.973788 | E17: 2570.849176 | F17: 862321.2871 | G17: 2577.299393
A18: 16 | B18: 862321.2871 | C18: 5453.822964 | D18: 2874.40429 | E18: 2579.418673 | F18: 859741.8684 | G18: 2550.509676
A19: 17 | B19: 859741.8684 | C19: 5453.822964 | D19: 2865.806228 | E19: 2588.016736 | F19: 857153.8517 | G19: 2523.950832
A20: 18 | B20: 857153.8517 | C20: 5453.822964 | D20: 2857.179506 | E20: 2596.643458 | F20: 854557.2082 | G20: 2497.621014
A21: 19 | B21: 854557.2082 | C21: 5453.822964 | D21: 2848.524027 | E21: 2605.298936 | F21: 851951.9093 | G21: 2471.518386
A22: 20 | B22: 851951.9093 | C22: 5453.822964 | D22: 2839.839698 | E22: 2613.983266 | F22: 849337.926 | G22: 2445.64113
A23: 21 | B23: 849337.926 | C23: 5453.822964 | D23: 2831.12642 | E23: 2622.696544 | F23: 846715.2295 | G23: 2419.987438
A24: 22 | B24: 846715.2295 | C24: 5453.822964 | D24: 2822.384098 | E24: 2631.438865 | F24: 844083.7906 | G24: 2394.555518
A25: 23 | B25: 844083.7906 | C25: 5453.822964 | D25: 2813.612635 | E25: 2640.210328 | F25: 841443.5803 | G25: 2369.343593
A26: 24 | B26: 841443.5803 | C26: 5453.822964 | D26: 2804.811934 | E26: 2649.011029 | F26: 838794.5693 | G26: 2344.349897
A27: 25 | B27: 838794.5693 | C27: 5453.822964 | D27: 2795.981898 | E27: 2657.841066 | F27: 836136.7282 | G27: 2319.57268
A28: 26 | B28: 836136.7282 | C28: 5453.822964 | D28: 2787.122427 | E28: 2666.700536 | F28: 833470.0277 | G28: 2295.010204
A29: 27 | B29: 833470.0277 | C29: 5453.822964 | D29: 2778.233426 | E29: 2675.589538 | F29: 830794.4381 | G29: 2270.660746
A30: 28 | B30: 830794.4381 | C30: 5453.822964 | D30: 2769.314794 | E30: 2684.50817 | F30: 828109.93 | G30: 2246.522595
A31: 29 | B31: 828109.93 | C31: 5453.822964 | D31: 2760.366433 | E31: 2693.456531 | F31: 825416.4734 | G31: 2222.594053
A32: 30 | B32: 825416.4734 | C32: 5453.822964 | D32: 2751.388245 | E32: 2702.434719 | F32: 822714.0387 | G32: 2198.873438
A33: 31 | B33: 822714.0387 | C33: 5453.822964 | D33: 2742.380129 | E33: 2711.442835 | F33: 820002.5959 | G33: 2175.359076
A34: 32 | B34: 820002.5959 | C34: 5453.822964 | D34: 2733.341986 | E34: 2720.480977 | F34: 817282.1149 | G34: 2152.049312
A35: 33 | B35: 817282.1149 | C35: 5453.822964 | D35: 2724.273716 | E35: 2729.549247 | F35: 814552.5656 | G35: 2128.942498
A36: 34 | B36: 814552.5656 | C36: 5453.822964 | D36: 2715.175219 | E36: 2738.647745 | F36: 811813.9179 | G36: 2106.037004
A37: 35 | B37: 811813.9179 | C37: 5453.822964 | D37: 2706.046393 | E37: 2747.776571 | F37: 809066.1413 | G37: 2083.331208
A38: 36 | B38: 809066.1413 | C38: 5453.822964 | D38: 2696.887138 | E38: 2756.935826 | F38: 806309.2055 | G38: 2060.823503
A39: 37 | B39: 806309.2055 | C39: 5453.822964 | D39: 2687.697352 | E39: 2766.125612 | F39: 803543.0799 | G39: 2038.512296
A40: 38 | B40: 803543.0799 | C40: 5453.822964 | D40: 2678.476933 | E40: 2775.346031 | F40: 800767.7339 | G40: 2016.396002
A41: 39 | B41: 800767.7339 | C41: 5453.822964 | D41: 2669.22578 | E41: 2784.597184 | F41: 797983.1367 | G41: 1994.473053
A42: 40 | B42: 797983.1367 | C42: 5453.822964 | D42: 2659.943789 | E42: 2793.879175 | F42: 795189.2575 | G42: 1972.741889
A43: 41 | B43: 795189.2575 | C43: 5453.822964 | D43: 2650.630858 | E43: 2803.192105 | F43: 792386.0654 | G43: 1951.200966
A44: 42 | B44: 792386.0654 | C44: 5453.822964 | D44: 2641.286885 | E44: 2812.536079 | F44: 789573.5293 | G44: 1929.848749
A45: 43 | B45: 789573.5293 | C45: 5453.822964 | D45: 2631.911764 | E45: 2821.911199 | F45: 786751.6181 | G45: 1908.683716
A46: 44 | B46: 786751.6181 | C46: 5453.822964 | D46: 2622.505394 | E46: 2831.31757 | F46: 783920.3005 | G46: 1887.704357
A47: 45 | B47: 783920.3005 | C47: 5453.822964 | D47: 2613.067668 | E47: 2840.755295 | F47: 781079.5453 | G47: 1866.909174
A48: 46 | B48: 781079.5453 | C48: 5453.822964 | D48: 2603.598484 | E48: 2850.22448 | F48: 778229.3208 | G48: 1846.296679
A49: 47 | B49: 778229.3208 | C49: 5453.822964 | D49: 2594.097736 | E49: 2859.725228 | F49: 775369.5955 | G49: 1825.865398
A50: 48 | B50: 775369.5955 | C50: 5453.822964 | D50: 2584.565318 | E50: 2869.257645 | F50: 772500.3379 | G50: 1805.613867
A51: 49 | B51: 772500.3379 | C51: 5453.822964 | D51: 2575.001126 | E51: 2878.821837 | F51: 769621.5161 | G51: 1785.540632
A52: 50 | B52: 769621.5161 | C52: 5453.822964 | D52: 2565.405054 | E52: 2888.41791 | F52: 766733.0982 | G52: 1765.644253
A53: 51 | B53: 766733.0982 | C53: 5453.822964 | D53: 2555.776994 | E53: 2898.04597 | F53: 763835.0522 | G53: 1745.923301
A54: 52 | B54: 763835.0522 | C54: 5453.822964 | D54: 2546.116841 | E54: 2907.706123 | F54: 760927.3461 | G54: 1726.376355
A55: 53 | B55: 760927.3461 | C55: 5453.822964 | D55: 2536.424487 | E55: 2917.398477 | F55: 758009.9476 | G55: 1707.002009
A56: 54 | B56: 758009.9476 | C56: 5453.822964 | D56: 2526.699825 | E56: 2927.123138 | F56: 755082.8244 | G56: 1687.798865
A57: 55 | B57: 755082.8244 | C57: 5453.822964 | D57: 2516.942748 | E57: 2936.880216 | F57: 752145.9442 | G57: 1668.765537
A58: 56 | B58: 752145.9442 | C58: 5453.822964 | D58: 2507.153147 | E58: 2946.669816 | F58: 749199.2744 | G58: 1649.90065
A59: 57 | B59: 749199.2744 | C59: 5453.822964 | D59: 2497.330915 | E59: 2956.492049 | F59: 746242.7824 | G59: 1631.20284
A60: 58 | B60: 746242.7824 | C60: 5453.822964 | D60: 2487.475941 | E60: 2966.347022 | F60: 743276.4353 | G60: 1612.670753
A61: 59 | B61: 743276.4353 | C61: 5453.822964 | D61: 2477.588118 | E61: 2976.234846 | F61: 740300.2005 | G61: 1594.303045
A62: 60 | B62: 740300.2005 | C62: 5453.822964 | D62: 2467.667335 | E62: 2986.155629 | F62: 737314.0449 | G62: 1576.098383
A63: 61 | B63: 737314.0449 | C63: 5453.822964 | D63: 2457.713483 | E63: 2996.109481 | F63: 734317.9354 | G63: 1558.055445
A64: 62 | B64: 734317.9354 | C64: 5453.822964 | D64: 2447.726451 | E64: 3006.096512 | F64: 731311.8389 | G64: 1540.172918
A65: 63 | B65: 731311.8389 | C65: 5453.822964 | D65: 2437.70613 | E65: 3016.116834 | F65: 728295.722 | G65: 1522.449501
A66: 64 | B66: 728295.722 | C66: 5453.822964 | D66: 2427.652407 | E66: 3026.170557 | F66: 725269.5515 | G66: 1504.883901
A67: 65 | B67: 725269.5515 | C67: 5453.822964 | D67: 2417.565172 | E67: 3036.257792 | F67: 722233.2937 | G67: 1487.474837
A68: 66 | B68: 722233.2937 | C68: 5453.822964 | D68: 2407.444312 | E68: =C68-D68 -> 3046.378651 | F68: =B68-E68 -> 719186.915 | G68: =D68/POWER(1+9/1200,A68) -> 1470.221036
A69: =A68+1 -> 67 | B69: =IF(F68>0,F68,0) -> 719186.915 | C69: =IF(B69>0,C68,0) -> 5453.822964 | D69: =B69*$J$1/1200 -> 2397.289717 | E69: 3056.533247 | F69: 716130.3818 | G69: 1453.121237
A70: 68 | B70: 716130.3818 | C70: 5453.822964 | D70: 2387.101273 | E70: 3066.721691 | F70: 713063.6601 | G70: 1436.174188
A71: 69 | B71: 713063.6601 | C71: 5453.822964 | D71: 2376.878867 | E71: 3076.944097 | F71: 709986.716 | G71: 1419.378646
A72: 70 | B72: 709986.716 | C72: 5453.822964 | D72: 2366.622387 | E72: 3087.200577 | F72: 706899.5154 | G72: 1402.733379
A73: 71 | B73: 706899.5154 | C73: 5453.822964 | D73: 2356.331718 | E73: 3097.491246 | F73: 703802.0242 | G73: 1386.237163
A74: 72 | B74: 703802.0242 | C74: 5453.822964 | D74: 2346.006747 | E74: 3107.816216 | F74: 700694.208 | G74: 1369.888785
A75: 73 | B75: 700694.208 | C75: 5453.822964 | D75: 2335.64736 | E75: 3118.175604 | F75: 697576.0324 | G75: 1353.687041
A76: 74 | B76: 697576.0324 | C76: 5453.822964 | D76: 2325.253441 | E76: 3128.569522 | F76: 694447.4628 | G76: 1337.630737
A77: 75 | B77: 694447.4628 | C77: 5453.822964 | D77: 2314.824876 | E77: 3138.998088 | F77: 691308.4648 | G77: 1321.718686
A78: 76 | B78: 691308.4648 | C78: 5453.822964 | D78: 2304.361549 | E78: 3149.461415 | F78: 688159.0033 | G78: 1305.949713
A79: 77 | B79: 688159.0033 | C79: 5453.822964 | D79: 2293.863344 | E79: 3159.959619 | F79: 684999.0437 | G79: 1290.32265
A80: 78 | B80: 684999.0437 | C80: 5453.822964 | D80: 2283.330146 | E80: 3170.492818 | F80: 681828.5509 | G80: 1274.836341
A81: 79 | B81: 681828.5509 | C81: 5453.822964 | D81: 2272.761836 | E81: 3181.061127 | F81: 678647.4898 | G81: 1259.489635
A82: 80 | B82: 678647.4898 | C82: 5453.822964 | D82: 2262.158299 | E82: 3191.664664 | F82: 675455.8251 | G82: 1244.281395
A83: 81 | B83: 675455.8251 | C83: 5453.822964 | D83: 2251.519417 | E83: 3202.303547 | F83: 672253.5216 | G83: 1229.210487
A84: 82 | B84: 672253.5216 | C84: 5453.822964 | D84: 2240.845072 | E84: 3212.977892 | F84: 669040.5437 | G84: 1214.275791
A85: 83 | B85: 669040.5437 | C85: 5453.822964 | D85: 2230.135146 | E85: 3223.687818 | F85: 665816.8559 | G85: 1199.476193
A86: 84 | B86: 665816.8559 | C86: 5453.822964 | D86: 2219.38952 | E86: 3234.433444 | F86: 662582.4224 | G86: 1184.810588
A87: 85 | B87: 662582.4224 | C87: 5453.822964 | D87: 2208.608075 | E87: 3245.214889 | F87: 659337.2075 | G87: 1170.277881
A88: 86 | B88: 659337.2075 | C88: 5453.822964 | D88: 2197.790692 | E88: 3256.032272 | F88: 656081.1752 | G88: 1155.876983
A89: 87 | B89: 656081.1752 | C89: 5453.822964 | D89: 2186.937251 | E89: 3266.885713 | F89: 652814.2895 | G89: 1141.606817
A90: 88 | B90: 652814.2895 | C90: 5453.822964 | D90: 2176.047632 | E90: 3277.775332 | F90: 649536.5142 | G90: 1127.466311
A91: 89 | B91: 649536.5142 | C91: 5453.822964 | D91: 2165.121714 | E91: 3288.70125 | F91: 646247.813 | G91: 1113.454404
A92: 90 | B92: 646247.813 | C92: 5453.822964 | D92: 2154.159377 | E92: 3299.663587 | F92: 642948.1494 | G92: 1099.570041
A93: 91 | B93: 642948.1494 | C93: 5453.822964 | D93: 2143.160498 | E93: 3310.662466 | F93: 639637.4869 | G93: 1085.812177
A94: 92 | B94: 639637.4869 | C94: 5453.822964 | D94: 2132.124956 | E94: 3321.698007 | F94: 636315.7889 | G94: 1072.179775
A95: 93 | B95: 636315.7889 | C95: 5453.822964 | D95: 2121.05263 | E95: 3332.770334 | F95: 632983.0186 | G95: 1058.671806
A96: 94 | B96: 632983.0186 | C96: 5453.822964 | D96: 2109.943395 | E96: 3343.879569 | F96: 629639.139 | G96: 1045.287247
A97: 95 | B97: 629639.139 | C97: 5453.822964 | D97: 2098.79713 | E97: 3355.025834 | F97: 626284.1132 | G97: 1032.025087
A98: 96 | B98: 626284.1132 | C98: 5453.822964 | D98: 2087.613711 | E98: 3366.209253 | F98: 622917.9039 | G98: 1018.884319
A99: 97 | B99: 622917.9039 | C99: 5453.822964 | D99: 2076.393013 | E99: 3377.429951 | F99: 619540.474 | G99: 1005.863947
A100: 98 | B100: 619540.474 | C100: 5453.822964 | D100: 2065.134913 | E100: 3388.688051 | F100: 616151.7859 | G100: 992.9629799
A101: 99 | B101: 616151.7859 | C101: 5453.822964 | D101: 2053.839286 | E101: 3399.983677 | F101: 612751.8022 | G101: 980.1804371
A102: 100 | B102: 612751.8022 | C102: 5453.822964 | D102: 2042.506007 | E102: 3411.316956 | F102: 609340.4853 | G102: 967.5153439
A103: 101 | B103: 609340.4853 | C103: 5453.822964 | D103: 2031.134951 | E103: 3422.688013 | F103: 605917.7973 | G103: 954.9667338
A104: 102 | B104: 605917.7973 | C104: 5453.822964 | D104: 2019.725991 | E104: 3434.096973 | F104: 602483.7003 | G104: 942.5336481
A105: 103 | B105: 602483.7003 | C105: 5453.822964 | D105: 2008.279001 | E105: 3445.543963 | F105: 599038.1563 | G105: 930.2151351
A106: 104 | B106: 599038.1563 | C106: 5453.822964 | D106: 1996.793854 | E106: 3457.029109 | F106: 595581.1272 | G106: 918.010251
A107: 105 | B107: 595581.1272 | C107: 5453.822964 | D107: 1985.270424 | E107: 3468.55254 | F107: 592112.5747 | G107: 905.9180592
A108: 106 | B108: 592112.5747 | C108: 5453.822964 | D108: 1973.708582 | E108: 3480.114381 | F108: 588632.4603 | G108: 893.9376305
A109: 107 | B109: 588632.4603 | C109: 5453.822964 | D109: 1962.108201 | E109: 3491.714763 | F109: 585140.7455 | G109: 882.0680429
A110: 108 | B110: 585140.7455 | C110: 5453.822964 | D110: 1950.469152 | E110: 3503.353812 | F110: 581637.3917 | G110: 870.3083818
A111: 109 | B111: 581637.3917 | C111: 5453.822964 | D111: 1938.791306 | E111: 3515.031658 | F111: 578122.3601 | G111: 858.6577397
A112: 110 | B112: 578122.3601 | C112: 5453.822964 | D112: 1927.074534 | E112: 3526.74843 | F112: 574595.6116 | G112: 847.1152162
A113: 111 | B113: 574595.6116 | C113: 5453.822964 | D113: 1915.318705 | E113: 3538.504258 | F113: 571057.1074 | G113: 835.6799179
A114: 112 | B114: 571057.1074 | C114: 5453.822964 | D114: 1903.523691 | E114: 3550.299272 | F114: 567506.8081 | G114: 824.3509587
A115: 113 | B115: 567506.8081 | C115: 5453.822964 | D115: 1891.68936 | E115: 3562.133603 | F115: 563944.6745 | G115: 813.1274591
A116: 114 | B116: 563944.6745 | C116: 5453.822964 | D116: 1879.815582 | E116: 3574.007382 | F116: 560370.6671 | G116: 802.0085467
A117: 115 | B117: 560370.6671 | C117: 5453.822964 | D117: 1867.902224 | E117: 3585.92074 | F117: 556784.7464 | G117: 790.993356
A118: 116 | B118: 556784.7464 | C118: 5453.822964 | D118: 1855.949155 | E118: 3597.873809 | F118: 553186.8726 | G118: 780.0810281
A119: 117 | B119: 553186.8726 | C119: 5453.822964 | D119: 1843.956242 | E119: 3609.866722 | F119: 549577.0058 | G119: 769.2707112
A120: 118 | B120: 549577.0058 | C120: 5453.822964 | D120: 1831.923353 | E120: 3621.899611 | F120: 545955.1062 | G120: 758.5615598
A121: 119 | B121: 545955.1062 | C121: 5453.822964 | D121: 1819.850354 | E121: 3633.97261 | F121: 542321.1336 | G121: 747.9527353
A122: 120 | B122: 542321.1336 | C122: 5453.822964 | D122: 1807.737112 | E122: 3646.085852 | F122: 538675.0478 | G122: 737.4434056
A123: 121 | B123: 538675.0478 | C123: 5453.822964 | D123: 1795.583493 | E123: 3658.239471 | F123: 535016.8083 | G123: 727.0327452
A124: 122 | B124: 535016.8083 | C124: 5453.822964 | D124: 1783.389361 | E124: 3670.433603 | F124: 531346.3747 | G124: 716.7199351
A125: 123 | B125: 531346.3747 | C125: 5453.822964 | D125: 1771.154582 | E125: 3682.668381 | F125: 527663.7063 | G125: 706.5041627
A126: 124 | B126: 527663.7063 | C126: 5453.822964 | D126: 1758.879021 | E126: 3694.943943 | F126: 523968.7624 | G126: 696.3846218
A127: 125 | B127: 523968.7624 | C127: 5453.822964 | D127: 1746.562541 | E127: 3707.260422 | F127: 520261.5019 | G127: 686.3605126
A128: 126 | B128: 520261.5019 | C128: 5453.822964 | D128: 1734.205006 | E128: 3719.617957 | F128: 516541.884 | G128: 676.4310415
A129: 127 | B129: 516541.884 | C129: 5453.822964 | D129: 1721.80628 | E129: 3732.016684 | F129: 512809.8673 | G129: 666.5954212
A130: 128 | B130: 512809.8673 | C130: 5453.822964 | D130: 1709.366224 | E130: 3744.456739 | F130: 509065.4106 | G130: 656.8528708
A131: 129 | B131: 509065.4106 | C131: 5453.822964 | D131: 1696.884702 | E131: 3756.938262 | F131: 505308.4723 | G131: 647.2026151
A132: 130 | B132: 505308.4723 | C132: 5453.822964 | D132: 1684.361574 | E132: =C132-D132 -> 3769.461389 | F132: =B132-E132 -> 501539.0109 | G132: =D132/POWER(1+9/1200,A132) -> 637.6438855
A133: =A132+1 -> 131 | B133: =IF(F132>0,F132,0) -> 501539.0109 | C133: =IF(B133>0,C132,0) -> 5453.822964 | D133: =B133*$J$1/1200 -> 1671.796703 | E133: 3782.026261 | F133: 497756.9847 | G133: 628.1759192
A134: 132 | B134: 497756.9847 | C134: 5453.822964 | D134: 1659.189949 | E134: 3794.633015 | F134: 493962.3516 | G134: 618.7979593
A135: 133 | B135: 493962.3516 | C135: 5453.822964 | D135: 1646.541172 | E135: 3807.281792 | F135: 490155.0698 | G135: 609.5092553
A136: 134 | B136: 490155.0698 | C136: 5453.822964 | D136: 1633.850233 | E136: 3819.972731 | F136: 486335.0971 | G136: 600.3090621
A137: 135 | B137: 486335.0971 | C137: 5453.822964 | D137: 1621.11699 | E137: 3832.705973 | F137: 482502.3911 | G137: 591.1966408
A138: 136 | B138: 482502.3911 | C138: 5453.822964 | D138: 1608.341304 | E138: 3845.48166 | F138: 478656.9095 | G138: 582.1712583
A139: 137 | B139: 478656.9095 | C139: 5453.822964 | D139: 1595.523032 | E139: 3858.299932 | F139: 474798.6095 | G139: 573.2321873
A140: 138 | B140: 474798.6095 | C140: 5453.822964 | D140: 1582.662032 | E140: 3871.160932 | F140: 470927.4486 | G140: 564.3787061
A141: 139 | B141: 470927.4486 | C141: 5453.822964 | D141: 1569.758162 | E141: 3884.064802 | F141: 467043.3838 | G141: 555.6100987
A142: 140 | B142: 467043.3838 | C142: 5453.822964 | D142: 1556.811279 | E142: 3897.011684 | F142: 463146.3721 | G142: 546.9256551
A143: 141 | B143: 463146.3721 | C143: 5453.822964 | D143: 1543.82124 | E143: 3910.001723 | F143: 459236.3704 | G143: 538.3246704
A144: 142 | B144: 459236.3704 | C144: 5453.822964 | D144: 1530.787901 | E144: 3923.035062 | F144: 455313.3353 | G144: 529.8064456
A145: 143 | B145: 455313.3353 | C145: 5453.822964 | D145: 1517.711118 | E145: 3936.111846 | F145: 451377.2235 | G145: 521.3702873
A146: 144 | B146: 451377.2235 | C146: 5453.822964 | D146: 1504.590745 | E146: 3949.232219 | F146: 447427.9913 | G146: 513.0155072
A147: 145 | B147: 447427.9913 | C147: 5453.822964 | D147: 1491.426638 | E147: 3962.396326 | F147: 443465.595 | G147: 504.7414228
A148: 146 | B148: 443465.595 | C148: 5453.822964 | D148: 1478.21865 | E148: 3975.604314 | F148: 439489.9906 | G148: 496.5473569
A149: 147 | B149: 439489.9906 | C149: 5453.822964 | D149: 1464.966635 | E149: 3988.856328 | F149: 435501.1343 | G149: 488.4326376
A150: 148 | B150: 435501.1343 | C150: 5453.822964 | D150: 1451.670448 | E150: 4002.152516 | F150: 431498.9818 | G150: 480.3965983
A151: 149 | B151: 431498.9818 | C151: 5453.822964 | D151: 1438.329939 | E151: 4015.493024 | F151: 427483.4888 | G151: 472.4385777
A152: 150 | B152: 427483.4888 | C152: 5453.822964 | D152: 1424.944963 | E152: 4028.878001 | F152: 423454.6108 | G152: 464.5579199
A153: 151 | B153: 423454.6108 | C153: 5453.822964 | D153: 1411.515369 | E153: 4042.307594 | F153: 419412.3032 | G153: 456.7539739
A154: 152 | B154: 419412.3032 | C154: 5453.822964 | D154: 1398.041011 | E154: 4055.781953 | F154: 415356.5212 | G154: 449.0260941
A155: 153 | B155: 415356.5212 | C155: 5453.822964 | D155: 1384.521737 | E155: 4069.301226 | F155: 411287.22 | G155: 441.3736399
A156: 154 | B156: 411287.22 | C156: 5453.822964 | D156: 1370.9574 | E156: 4082.865564 | F156: 407204.3544 | G156: 433.7959758
A157: 155 | B157: 407204.3544 | C157: 5453.822964 | D157: 1357.347848 | E157: 4096.475116 | F157: 403107.8793 | G157: 426.2924713
A158: 156 | B158: 403107.8793 | C158: 5453.822964 | D158: 1343.692931 | E158: 4110.130033 | F158: 398997.7493 | G158: 418.862501
A159: 157 | B159: 398997.7493 | C159: 5453.822964 | D159: 1329.992498 | E159: 4123.830466 | F159: 394873.9188 | G159: 411.5054444
A160: 158 | B160: 394873.9188 | C160: 5453.822964 | D160: 1316.246396 | E160: 4137.576568 | F160: 390736.3423 | G160: 404.2206858
A161: 159 | B161: 390736.3423 | C161: 5453.822964 | D161: 1302.454474 | E161: 4151.36849 | F161: 386584.9738 | G161: 397.0076147
A162: 160 | B162: 386584.9738 | C162: 5453.822964 | D162: 1288.616579 | E162: 4165.206384 | F162: 382419.7674 | G162: 389.865625
A163: 161 | B163: 382419.7674 | C163: 5453.822964 | D163: 1274.732558 | E163: 4179.090406 | F163: 378240.677 | G163: 382.7941158
A164: 162 | B164: 378240.677 | C164: 5453.822964 | D164: 1260.802257 | E164: 4193.020707 | F164: 374047.6563 | G164: 375.7924909
A165: 163 | B165: 374047.6563 | C165: 5453.822964 | D165: 1246.825521 | E165: 4206.997443 | F165: 369840.6588 | G165: 368.8601585
A166: 164 | B166: 369840.6588 | C166: 5453.822964 | D166: 1232.802196 | E166: 4221.020768 | F166: 365619.6381 | G166: 361.9965321
A167: 165 | B167: 365619.6381 | C167: 5453.822964 | D167: 1218.732127 | E167: 4235.090837 | F167: 361384.5472 | G167: 355.2010292
A168: 166 | B168: 361384.5472 | C168: 5453.822964 | D168: 1204.615157 | E168: 4249.207806 | F168: 357135.3394 | G168: 348.4730725
A169: 167 | B169: 357135.3394 | C169: 5453.822964 | D169: 1190.451131 | E169: 4263.371832 | F169: 352871.9676 | G169: 341.8120888
A170: 168 | B170: 352871.9676 | C170: 5453.822964 | D170: 1176.239892 | E170: 4277.583072 | F170: 348594.3845 | G170: 335.2175099
A171: 169 | B171: 348594.3845 | C171: 5453.822964 | D171: 1161.981282 | E171: 4291.841682 | F171: 344302.5428 | G171: 328.6887719
A172: 170 | B172: 344302.5428 | C172: 5453.822964 | D172: 1147.675143 | E172: 4306.147821 | F172: 339996.395 | G172: 322.2253152
A173: 171 | B173: 339996.395 | C173: 5453.822964 | D173: 1133.321317 | E173: 4320.501647 | F173: 335675.8934 | G173: 315.8265851
A174: 172 | B174: 335675.8934 | C174: 5453.822964 | D174: 1118.919645 | E174: 4334.903319 | F174: 331340.99 | G174: 309.4920309
A175: 173 | B175: 331340.99 | C175: 5453.822964 | D175: 1104.469967 | E175: 4349.352997 | F175: 326991.637 | G175: 303.2211065
A176: 174 | B176: 326991.637 | C176: 5453.822964 | D176: 1089.972123 | E176: 4363.85084 | F176: 322627.7862 | G176: 297.0132701
A177: 175 | B177: 322627.7862 | C177: 5453.822964 | D177: 1075.425954 | E177: 4378.39701 | F177: 318249.3892 | G177: 290.8679842
A178: 176 | B178: 318249.3892 | C178: 5453.822964 | D178: 1060.831297 | E178: 4392.991666 | F178: 313856.3975 | G178: 284.7847156
A179: 177 | B179: 313856.3975 | C179: 5453.822964 | D179: 1046.187992 | E179: 4407.634972 | F179: 309448.7626 | G179: 278.7629353
A180: 178 | B180: 309448.7626 | C180: 5453.822964 | D180: 1031.495875 | E180: 4422.327089 | F180: 305026.4355 | G180: 272.8021187
A181: 179 | B181: 305026.4355 | C181: 5453.822964 | D181: 1016.754785 | E181: 4437.068179 | F181: 300589.3673 | G181: 266.9017451
A182: 180 | B182: 300589.3673 | C182: 5453.822964 | D182: 1001.964558 | E182: 4451.858406 | F182: 296137.5089 | G182: 261.0612981
A183: 181 | B183: =IF(F182>0,F182,0) -> 296137.5089 | C183: =IF(B183>0,C182,0) -> 5453.822964 | D183: =B183*$J$1/1200 -> 987.1250296 | E183: =C183-D183 -> 4466.697934 | F183: =B183-E183 -> 291670.8109 | G183: =D183/POWER(1+9/1200,A183) -> 255.2802655
A184: 182 | B184: 291670.8109 | C184: 5453.822964 | D184: 972.2360365 | E184: 4481.586927 | F184: 287189.224 | G184: 249.558139
A185: 183 | B185: 287189.224 | C185: 5453.822964 | D185: 957.2974134 | E185: 4496.52555 | F185: 282692.6985 | G185: 243.8944146
A186: 184 | B186: 282692.6985 | C186: 5453.822964 | D186: 942.3089949 | E186: 4511.513969 | F186: 278181.1845 | G186: 238.288592
A187: 185 | B187: 278181.1845 | C187: 5453.822964 | D187: 927.270615 | E187: 4526.552349 | F187: 273654.6322 | G187: 232.7401752
A188: 186 | B188: 273654.6322 | C188: 5453.822964 | D188: 912.1821072 | E188: 4541.640857 | F188: 269112.9913 | G188: 227.248672
A189: 187 | B189: 269112.9913 | C189: 5453.822964 | D189: 897.0433043 | E189: 4556.779659 | F189: 264556.2116 | G189: 221.8135941
A190: 188 | B190: 264556.2116 | C190: 5453.822964 | D190: 881.8540388 | E190: 4571.968925 | F190: 259984.2427 | G190: 216.4344572
A191: 189 | B191: 259984.2427 | C191: 5453.822964 | D191: 866.6141424 | E191: 4587.208821 | F191: 255397.0339 | G191: 211.110781
A192: 190 | B192: 255397.0339 | C192: 5453.822964 | D192: 851.3234463 | E192: 4602.499517 | F192: 250794.5344 | G192: 205.8420887
A193: 191 | B193: 250794.5344 | C193: 5453.822964 | D193: 835.9817812 | E193: 4617.841182 | F193: 246176.6932 | G193: 200.6279075
A194: 192 | B194: 246176.6932 | C194: 5453.822964 | D194: 820.5889773 | E194: 4633.233986 | F194: 241543.4592 | G194: 195.4677684
A195: 193 | B195: 241543.4592 | C195: 5453.822964 | D195: 805.144864 | E195: 4648.6781 | F195: 236894.7811 | G195: 190.3612062
A196: 194 | B196: 236894.7811 | C196: 5453.822964 | D196: 789.6492703 | E196: 4664.173693 | F196: 232230.6074 | G196: 185.3077593
A197: =A196+1 -> 195 | B197: 232230.6074 | C197: 5453.822964 | D197: 774.1020247 | E197: 4679.720939 | F197: 227550.8865 | G197: 180.3069698
A198: 196 | B198: 227550.8865 | C198: 5453.822964 | D198: 758.5029549 | E198: 4695.320009 | F198: 222855.5665 | G198: 175.3583836
A199: 197 | B199: 222855.5665 | C199: 5453.822964 | D199: 742.8518882 | E199: 4710.971075 | F199: 218144.5954 | G199: 170.4615501
A200: 198 | B200: 218144.5954 | C200: 5453.822964 | D200: 727.1486513 | E200: 4726.674312 | F200: 213417.9211 | G200: 165.6160224
... 43 more rows

Sheet Sheet1
A1: Please enable macros
